Workbook

Sheet Meny
C3: Versjon: | D3: 1.1
B5: MENY
B28: Sats for SPK: | D28: 0.13
B30: Sats for KLP: | D30: 0.1133

Sheet Inventar og utstyr
B2: Kjøp av inventar og utstyr
C6: Regnskap:
C7: Tekst: | D7: Hva kjøpes inn?
C9: Fakturabeløp inkl. mva: | E9: =IF(D9="","Tast inn fakturabeløp inkl. mva","") -> Tast inn fakturabeløp inkl. mva
C11: Eget prosj. nr: | E11: =IF(D11="","Svar ja/nei","") -> Svar ja/nei
C13: =IF(D11="Ja","Prosjektnr:","") -> 
C16: Hvor skal kostnadene belastes i investeringsregnskapet?
C17: Bokføres av: | D17: Konto | E17: Tjeneste | F17: Ansvar | G17: Prosjekt | H17: Avg. | I17: Beløp
C18: Økonomi | G18: =IF(D11="Ja",D13,9998) -> 9998 | I18: =D9 -> 0
C19: Etat/Økonomi | D19: 09700 | E19: 88070 | F19: 900000 | G19: 0000 | I19: =-D9+I21 -> 0
C20: Etat/Økonomi | D20: 15700 | E20: =E18 -> 0 | F20: =F18 -> 0 | G20: =G18 -> 9998 | I20: =D9+I22 -> 0
C21: Økonomi | D21: =IF($H$18<>0,"0"&4290,"") ->  | E21: =IF(H18<>0,E18,"") ->  | F21: =IF(H18<>0,F18,"") ->  | G21: =IF(H18<>0,G18,"") ->  | I21: =IF(H18<>0,D9-(D9/(VLOOKUP(H18,test,2)+1)),0) -> 0
C22: Økonomi | D22: =IF($H$18<>0,"0"&7290,"") ->  | E22: =IF(H18<>0,84100,"") ->  | F22: =IF(H18<>0,990000,"") ->  | G22: =IF(H18<>0,"0000","") ->  | I22: =IF(H18<>0,-I21,0) -> 0
H23: =SUM(I18:I22) -> 0
C26: Budsjett:
C28: Inndekning av kostnader i investeringsregnskapet:
C29: Reguleres av: | D29: Konto | E29: Tjeneste | F29: Ansvar | G29: Prosjekt | H29: Beløp
C30: Etat/Økonomi | D30: =D18 -> 0 | E30: =E18 -> 0 | F30: =F18 -> 0 | G30: =G18 -> 9998 | H30: =ROUND(I18-I21,-2) -> 0
C31: Etat/Økonomi | D31: =D19 -> 09700 | E31: =E19 -> 88070 | F31: 900000 | G31: 0000 | H31: =ROUND(I19,-2) -> 0
C32: Etat/Økonomi | D32: =D20 -> 15700 | E32: 0 | F32: 0 | G32: 9998 | H32: =ROUND(I20,-2) -> 0
C33: Etat/Økonomi | D33: =D21 ->  | H33: =IF(I21<>"",ROUND(I21,-2),"") -> 0
C34: Etat/Økonomi | H34: =IF(I22<>"",ROUND(I22,-2),"") -> 0
G35: =SUM(H30:H34) -> 0
C36: Alt.1
C37: Hvilke(n) driftskonto(er) skal finansiere investeringen?
C38: Reguleres av: | D38: Konto | E38: Tjeneste | F38: Ansvar | G38: Prosjekt | H38: Mva komp. | I38: Beløp
C39: Etat/Økonomi | I39: =-H30-I42-I45-H57-H58-H59 -> 0
C40: Etat/Økonomi | D40: 14290 | E40: =E39 -> 0 | F40: =F39 -> 0 | G40: =G39 -> 0 | I40: =ROUND((I39*(1+VLOOKUP(H39,mvadrift,2))-I39),-2) -> 0
C41: Etat/Økonomi | D41: 17290 | E41: =E39 -> 0 | F41: =F39 -> 0 | G41: =G39 -> 0 | I41: =-I40 -> 0 | K41: Kontroll
C42: Etat/Økonomi | K42: =IF((I42-ROUND(I42,-2))<>0,"Kun beløp i hele 100","") ->  | L42: =IF(I42>0,"Beløp skal ha negativt fortegn","") -> 
C43: Etat/Økonomi | D43: 14290 | E43: =E42 -> 0 | F43: =F42 -> 0 | G43: =G42 -> 0 | I43: =ROUND((I42*(1+VLOOKUP(H42,mvadrift,2))-I42),-2) -> 0
C44: Etat/Økonomi | D44: 17290 | E44: =E42 -> 0 | F44: =F42 -> 0 | G44: =G42 -> 0 | I44: =-I43 -> 0
C45: Etat/Økonomi | K45: =IF((I45-ROUND(I45,-2))<>0,"Kun beløp i hele 100","") ->  | L45: =IF(I45>0,"G50 skal være < 0","") -> 
C46: Etat/Økonomi | D46: 14290 | E46: =E45 -> 0 | F46: =F45 -> 0 | G46: =G45 -> 0 | I46: =ROUND((I45*(1+VLOOKUP(H45,mvadrift,2))-I45),-2) -> 0
C47: Etat/Økonomi | D47: 17290 | E47: =E45 -> 0 | F47: =F45 -> 0 | G47: =G45 -> 0 | I47: =-I46 -> 0
H48: =SUM(I39:I47) -> 0
C49: Alt.2
C50: Eventuelt fra lønnskonto/ufordelt konto?
C52: Beløp inkl. sos.kostnader: | K52: =IF((E52-ROUND(E52,-2))<>0,"Kun beløp i hele 100","") ->  | L52: =IF(E52>0,"F54 skal være < 0","") -> 
C54: Satser: | G54: =IF(E54<>"","","Velg sats for pensjon og arb.giveravgift") -> Velg sats for pensjon og arb.giveravgift
C56: Reguleres av: | D56: Konto | E56: Tjeneste | F56: Ansvar | G56: Prosjekt | H56: Beløp
C57: Etat/Økonomi | H57: =IF(E52<>"",ROUND(E52*VLOOKUP(E54,sosialtabell,2),-2),0) -> 0 | K57: =IF((H57-ROUND(H57,-2))<>0,"Kun beløp i hele 100","") ->  | L57: =IF(H57>0,"G60 skal være < 0","") -> 
C58: Etat/Økonomi | D58: =VLOOKUP(E54,sosialtabell,5) ->  | E58: =E57 -> 0 | F58: =F57 -> 0 | G58: =G57 -> 0 | H58: =IF(E52<>"",ROUND(E52*VLOOKUP(E54,sosialtabell,3),-2),0) -> 0 | K58: =IF((H58-ROUND(H58,-2))<>0,"Kun beløp i hele 100","") ->  | L58: =IF(H58>0,"G61 skal være < 0","") -> 
C59: Etat/Økonomi | D59: 10990 | E59: =E57 -> 0 | F59: =F57 -> 0 | G59: =G57 -> 0 | H59: =ROUND(E52-H57-H58,-2) -> 0 | K59: =IF((H59-ROUND(H59,-2))<>0,"Kun beløp i hele 100","") ->  | L59: =IF(H59>0,"G62 skal være < 0","") -> 
G60: =SUM(H57:H59) -> 0

Sheet Kjøp av bruktbil
B2: Kjøp av bruktbil
C6: Regnskap:
C7: Tekst: | D7: Hva kjøpes inn?
C9: Kjøpesum: | E9: =IF(D9="","Tast inn kjøpspris bruktbil. Evt. innbyttebil skal ikke tas med NB! Ingen mva på bruktbil","") -> Tast inn kjøpspris bruktbil. Evt. innbyttebil skal ikke tas med NB! Ingen mva på bruktbil
C11: Eget prosj.nr: | E11: =IF(D11="","Svar ja/nei","") -> Svar ja/nei
C13: =IF(D11="Ja","Prosjektnr:","") -> 
C15: Innbyttebil: | E15: =IF(D15<>"","","Svar ja/nei") -> Svar ja/nei
C17: =IF(D15="Ja","Salgssum:","") -> 
C19: Hvor skal kostnadene belastes i investeringsregnskapet?
C20: Bokføres av: | D20: Konto | E20: Tjeneste | F20: Ansvar | G20: Prosjekt | H20: Avg. | I20: Beløp
C21: Økonomi | D21: 02101 | G21: =IF(D11="Ja",D13,9998) -> 9998 | H21: 0 | I21: =D9 -> 0
C22: Etat/Økonomi | D22: 09700 | E22: 88070 | F22: 900000 | G22: 0000 | I22: =-D9+D17 -> 0
C23: Etat/Økonomi | D23: 15700 | E23: =E21 -> 0 | F23: =F21 -> 0 | G23: =G21 -> 9998 | I23: =-I22 -> 0
C24: Økonomi | D24: =IF(D15="Ja","06603","") ->  | E24: =IF(D15="Ja",E23,"") ->  | F24: =IF(D15="Ja",F23,"") ->  | G24: =IF(D15="Ja",G23,"") ->  | I24: =IF(D15="Ja",-D17,"") -> 
H25: =SUM(I21:I24) -> 0
C28: Budsjett:
C30: Inndekning av kostnader i investeringsregnskapet:
C31: Reguleres av: | D31: Konto | E31: Tjeneste | F31: Ansvar | G31: Prosjekt | H31: Beløp
C32: Etat/Økonomi | D32: =D21 -> 02101 | E32: 0 | F32: 0 | G32: 9998 | H32: =ROUND(D9,-2) -> 0
C33: Etat/Økonomi | D33: 09700 | E33: 88070 | F33: 900000 | G33: 0000 | H33: =ROUND(I22,-2) -> 0
C34: Etat/Økonomi | D34: 15700 | E34: 0 | F34: 0 | G34: 9998 | H34: =-H33 -> 0
C35: Etat/Økonomi | D35: =IF(D24<>"",D24,"") ->  | E35: =E24 ->  | F35: =F24 ->  | G35: =G24 ->  | H35: =IF(D15="Ja",ROUND(I24,-2),"") -> 
G36: =SUM(H32:H35) -> 0
C37: Alt.1
C38: Hvilke(n) driftskonto(er) skal finansiere investeringen?
C39: Reguleres av: | D39: Konto | E39: Tjeneste | F39: Ansvar | G39: Prosjekt | H39: Mva komp. | I39: Beløp
C40: Etat/Økonomi | I40: =-H34-I43-I46-H58-H59-H60 -> 0
C41: Etat/Økonomi | D41: 14290 | E41: =E40 -> 0 | F41: =F40 -> 0 | G41: =G40 -> 0 | I41: =ROUND((I40*(1+VLOOKUP(H40,mvadrift,2))-I40),-2) -> 0
C42: Etat/Økonomi | D42: 17290 | E42: =E40 -> 0 | F42: =F40 -> 0 | G42: =G40 -> 0 | I42: =-I41 -> 0 | K42: Kontroll
C43: Etat/Økonomi | K43: =IF((I43-ROUND(I43,-2))<>0,"Kun beløp i hele 100","") ->  | L43: =IF(I43>0,"Beløp skal ha negativt fortegn","") -> 
C44: Etat/Økonomi | D44: 14290 | E44: =E43 -> 0 | F44: =F43 -> 0 | G44: =G43 -> 0 | I44: =ROUND((I43*(1+VLOOKUP(H43,mvadrift,2))-I43),-2) -> 0
C45: Etat/Økonomi | D45: 17290 | E45: =E43 -> 0 | F45: =F43 -> 0 | G45: =G43 -> 0 | I45: =-I44 -> 0
C46: Etat/Økonomi | K46: =IF((I46-ROUND(I46,-2))<>0,"Kun beløp i hele 100","") ->  | L46: =IF(I46>0,"G50 skal være < 0","") -> 
C47: Etat/Økonomi | D47: 14290 | E47: =E46 -> 0 | F47: =F46 -> 0 | G47: =G46 -> 0 | I47: =ROUND((I46*(1+VLOOKUP(H46,mvadrift,2))-I46),-2) -> 0
C48: Etat/Økonomi | D48: 17290 | E48: =E46 -> 0 | F48: =F46 -> 0 | G48: =G46 -> 0 | I48: =-I47 -> 0
H49: =SUM(I40:I48) -> 0
C50: Alt.2
C51: Eventuelt fra lønnskonto/ufordelt konto?
C53: Beløp inkl. sos.kostnader: | K53: =IF((E53-ROUND(E53,-2))<>0,"Kun beløp i hele 100","") ->  | L53: =IF(E53>0,"F54 skal være < 0","") -> 
C55: Satser: | G55: =IF(E55<>"","","Velg sats for pensjon og arb.giveravgift") -> Velg sats for pensjon og arb.giveravgift
C57: Reguleres av: | D57: Konto | E57: Tjeneste | F57: Ansvar | G57: Prosjekt | H57: Beløp
C58: Etat/Økonomi | H58: =IF(E53<>"",ROUND(E53*VLOOKUP(E55,sosialtabell,2),-2),0) -> 0
C59: Etat/Økonomi | D59: =VLOOKUP(E55,sosialtabell,5) ->  | E59: =E58 -> 0 | F59: =F58 -> 0 | G59: =G58 -> 0 | H59: =IF(E53<>"",ROUND(E53*VLOOKUP(E55,sosialtabell,3),-2),0) -> 0
C60: Etat/Økonomi | D60: 10990 | E60: =E58 -> 0 | F60: =F58 -> 0 | G60: =G58 -> 0 | H60: =IF(E53<>"",ROUND(E53*VLOOKUP(E55,sosialtabell,4),-2),0) -> 0
G61: =SUM(H58:H60) -> 0

Sheet Kjøp av ny bil
B2: Kjøp av ny bil, kl. 2
C6: Regnskap:
C7: Tekst: | D7: Hva kjøpes inn?
C9: Kjøpesum: | E9: =IF(D9="","Tast inn kjøpspris på den nye bilen inkl.mva. Evt. innbyttebil skal ikke redusere prisen","") -> Tast inn kjøpspris på den nye bilen inkl.mva. Evt. innbyttebil skal ikke redusere prisen
C11: Eget prosj.nr: | E11: =IF(D11="","Svar ja/nei","") -> Svar ja/nei
C13: =IF(D11="Ja","Prosjektnr:","") -> 
C15: Innbyttebil: | E15: =IF(D15<>"","","Svar ja/nei") -> Svar ja/nei
C17: =IF(D15="Ja","Salgssum:","") -> 
C19: Hvor skal kostnadene belastes i investeringsregnskapet?
C20: Bokføres av: | D20: Konto | E20: Tjeneste | F20: Ansvar | G20: Prosjekt | H20: Avg. | I20: Beløp
C21: Økonomi | D21: 02101 | G21: =IF(D11="Ja",D13,9998) -> 9998 | H21: D | I21: =D9 -> 0
C22: Etat/Økonomi | D22: 09700 | E22: 88070 | F22: 900000 | G22: 0000 | I22: =-D9+D17+I24 -> 0
C23: Etat/Økonomi | D23: 15700 | E23: =E21 -> 0 | F23: =F21 -> 0 | G23: =G21 -> 9998 | I23: =-I22 -> 0
C24: Økonomi | D24: 04290 | E24: =E21 -> 0 | F24: =F21 -> 0 | G24: =G21 -> 9998 | I24: =I21-(I21/1.25) -> 0
C25: Økonomi | D25: 07290 | E25: 84100 | F25: 990000 | G25: 0000 | I25: =-I24 -> 0
C26: Økonomi | D26: =IF(D15="Ja","06603","") ->  | E26: =IF(D15="Ja",E23,"") ->  | F26: =IF(D15="Ja",F23,"") ->  | G26: =IF(D15="Ja",G23,"") ->  | I26: =IF(D15="Ja",-D17,"") -> 
H27: =SUM(I21:I26) -> 0
C30: Budsjett:
C32: Inndekning av kostnader i investeringsregnskapet:
C33: Reguleres av: | D33: Konto | E33: Tjeneste | F33: Ansvar | G33: Prosjekt | H33: Beløp
C34: Etat/Økonomi | D34: =D21 -> 02101 | E34: 0 | F34: 0 | G34: 9998 | H34: =ROUND(D9/1.25,-2) -> 0
C35: Etat/Økonomi | D35: 09700 | E35: 88070 | F35: 900000 | G35: 0000 | H35: =ROUND(I22,-2) -> 0
C36: Etat/Økonomi | D36: 15700 | E36: 0 | F36: 0 | G36: 9998 | H36: =-H35 -> 0
C37: Etat/Økonomi | D37: =D24 -> 04290 | E37: 0 | F37: 0 | G37: 9998 | H37: =ROUND(I24,-2) -> 0
C38: Etat/Økonomi | D38: 07290 | E38: 84100 | F38: 990000 | G38: 0000 | H38: =-H37 -> 0
C39: Etat/Økonomi | D39: =IF(D26<>"",D26,"") ->  | E39: =E26 ->  | F39: =F26 ->  | G39: =G26 ->  | H39: =IF(D15="Ja",ROUND(I26,-2),0) -> 0
G40: =SUM(H34:H39) -> 0
C41: Alt.1
C42: Hvilke(n) driftskonto(er) skal finansiere investeringen?
C43: Reguleres av: | D43: Konto | E43: Tjeneste | F43: Ansvar | G43: Prosjekt | H43: Mva komp. | I43: Beløp
C44: Etat/Økonomi | I44: =-H34-H39-I47-I50-H62-H63-H64 -> 0
C45: Etat/Økonomi | D45: 14290 | E45: =E44 -> 0 | F45: =F44 -> 0 | G45: =G44 -> 0 | I45: =ROUND((I44*(1+VLOOKUP(H44,mvadrift,2))-I44),-2) -> 0
C46: Etat/Økonomi | D46: 17290 | E46: =E44 -> 0 | F46: =F44 -> 0 | G46: =G44 -> 0 | I46: =-I45 -> 0 | K46: Kontroll
C47: Etat/Økonomi | K47: =IF((I47-ROUND(I47,-2))<>0,"Kun beløp i hele 100","") ->  | L47: =IF(I47>0,"Beløp skal ha negativt fortegn","") -> 
C48: Etat/Økonomi | D48: 14290 | E48: =E47 -> 0 | F48: =F47 -> 0 | G48: =G47 -> 0 | I48: =ROUND((I47*(1+VLOOKUP(H47,mvadrift,2))-I47),-2) -> 0
C49: Etat/Økonomi | D49: 17290 | E49: =E47 -> 0 | F49: =F47 -> 0 | G49: =G47 -> 0 | I49: =-I48 -> 0
C50: Etat/Økonomi | K50: =IF((I50-ROUND(I50,-2))<>0,"Kun beløp i hele 100","") ->  | L50: =IF(I50>0,"G50 skal være < 0","") -> 
C51: Etat/Økonomi | D51: 14290 | E51: =E50 -> 0 | F51: =F50 -> 0 | G51: =G50 -> 0 | I51: =ROUND((I50*(1+VLOOKUP(H50,mvadrift,2))-I50),-2) -> 0
C52: Etat/Økonomi | D52: 17290 | E52: =E50 -> 0 | F52: =F50 -> 0 | G52: =G50 -> 0 | I52: =-I51 -> 0
H53: =SUM(I44:I52) -> 0
C54: Alt.2
C55: Eventuelt fra lønnskonto/ufordelt konto?
C57: Beløp inkl. sos.kostnader: | K57: =IF((E57-ROUND(E57,-2))<>0,"Kun beløp i hele 100","") ->  | L57: =IF(E57>0,"F54 skal være < 0","") -> 
C59: Satser: | G59: =IF(E59<>"","","Velg sats for pensjon og arb.giveravgift") -> Velg sats for pensjon og arb.giveravgift
C61: Reguleres av: | D61: Konto | E61: Tjeneste | F61: Ansvar | G61: Prosjekt | H61: Beløp
C62: Etat/Økonomi | H62: =IF(E57<>"",ROUND(E57*VLOOKUP(E59,sosialtabell,2),-2),0) -> 0
C63: Etat/Økonomi | D63: =VLOOKUP(E59,sosialtabell,5) ->  | E63: =E62 -> 0 | F63: =F62 -> 0 | G63: =G62 -> 0 | H63: =IF(E57<>"",ROUND(E57*VLOOKUP(E59,sosialtabell,3),-2),0) -> 0
C64: Etat/Økonomi | D64: 10990 | E64: =E62 -> 0 | F64: =F62 -> 0 | G64: =G62 -> 0 | H64: =IF(E57<>"",ROUND(E57*VLOOKUP(E59,sosialtabell,4),-2),0) -> 0
G65: =SUM(H62:H64) -> 0

Sheet Kjøp av lånefin. bil
B2: Kjøp av ny bil, kl. 2 (finansieries av lån godkjent av fylkestinget).
C6: Regnskap:
C7: Tekst: | D7: Hva kjøpes inn?
C9: Kjøpesum: | E9: =IF(D9="","Tast inn kjøpspris på den nye bilen inkl. mva. Evt. innbyttebil skal ikke tas med.","") -> Tast inn kjøpspris på den nye bilen inkl. mva. Evt. innbyttebil skal ikke tas med.
C11: Eget prosj.nr: | E11: =IF(D11="","Svar ja/nei","") -> Svar ja/nei
C13: =IF(D11="Ja","Prosjektnr:","") -> 
C15: Innbyttebil:
C17: =IF(D15="Ja","Salgssum:","") -> 
C19: Hvor skal kostnadene belastes i investeringsregnskapet?
C20: Bokføres av: | D20: Konto | E20: Tjeneste | F20: Ansvar | G20: Prosjekt | H20: Avg. | I20: Beløp
C21: Økonomi | D21: 02101 | G21: =IF(D11="Ja",D13,9998) -> 9998 | H21: D | I21: =D9 -> 0
C22: Etat/Økonomi | D22: 09100 | E22: 87090 | F22: 900000 | G22: 0000 | I22: =-D9+D17+I23 -> 0
C23: Økonomi | D23: 04290 | E23: =E21 -> 0 | F23: =F21 -> 0 | G23: =G21 -> 9998 | I23: =I21-(I21/1.25) -> 0
C24: Økonomi | D24: 07290 | E24: 84100 | F24: 990000 | G24: 0000 | I24: =-I23 -> 0
C25: Økonomi | D25: =IF(D15="Ja","06603","") ->  | E25: =IF(D15="Ja",E21,"") ->  | F25: =IF(D15="Ja",F21,"") ->  | G25: =IF(D15="Ja",G21,"") ->  | I25: =IF(D15="Ja",-D17,"") -> 
H26: =SUM(I21:I25) -> 0
C29: Budsjett:
C31: Inndekning av kostnader i investeringsregnskapet:
C32: Reguleres av: | D32: Konto | E32: Tjeneste | F32: Ansvar | G32: Prosjekt | H32: Beløp
C33: Etat/Økonomi | D33: =D21 -> 02101 | E33: 0 | F33: 0 | G33: 9998 | H33: =ROUND(D9/1.25,-2) -> 0
C34: Etat/Økonomi | D34: 09100 | E34: 87090 | F34: 900000 | G34: 0000 | H34: =ROUND(I22,-2) -> 0
C35: Etat/Økonomi | D35: =D23 -> 04290 | E35: =E23 -> 0 | F35: 0 | G35: 9998 | H35: =ROUND(I23,-2) -> 0
C36: Etat/Økonomi | D36: =D24 -> 07290 | E36: 84100 | F36: 990000 | G36: 0000 | H36: =-H35 -> 0
C37: Etat/Økonomi | D37: =IF(D25<>"",D25,"") ->  | E37: =E25 ->  | F37: =F25 ->  | G37: =G25 ->  | H37: =IF(D15="Ja",ROUND(I25,-2),0) -> 0
G38: =SUM(H33:H37) -> 0

Sheet Liste (hidden)
B3: Mva | C3: Mva-koder | D3: Sats
B4: Ja | C4: D | D4: 0.25 | J4: A | K4: 0.25
B5: Nei | C5: E | D5: 0.15 | G5: KLP | H5: 10901 | J5: B | K5: 0.15
C6: F | D6: 0.12 | G6: SPK | H6: 10911 | J6: C | K6: 0.12
C7: 0 | D7: 0 | J7: 0 | K7: 0
C8: 1 | D8: 0.25 | G8: Nord-Troms | H8: 0
G9: Øvrige | H9: 0.051
G10: Tromsø | H10: 0.079
H14: KLP | I14: SPK
G15: Sats pensjon | H15: 0.1133 | I15: 0.13

Sheet Lønn og sos.kostn (hidden)
A4: Valg | B4: Lønn | C4: Pensjon | D4: AGA | E4: Konto
A5: A - SPK og 7,9 % AGA | B5: ='Fordeling lønn'!E6 -> 0.8210735586 | C5: ='Fordeling lønn'!E7 -> 0.1053677932 | D5: ='Fordeling lønn'!E8 -> 0.07355864811 | E5: 10911
A6: B - SPK og 5,1 % AGA | B6: ='Fordeling lønn'!E15 -> 0.8428571429 | C6: ='Fordeling lønn'!E16 -> 0.1081632653 | D6: ='Fordeling lønn'!E17 -> 0.04897959184 | E6: 10911
A7: C - SPK og ingen AGA | B7: ='Fordeling lønn'!E24 -> 0.8862660944 | C7: ='Fordeling lønn'!E25 -> 0.1137339056 | D7: 0 | E7: 10911
A8: D - KLP og 7,9 % AGA | B8: ='Fordeling lønn'!J6 -> 0.8343434343 | C8: ='Fordeling lønn'!J7 -> 0.09292929293 | D8: ='Fordeling lønn'!J8 -> 0.07272727273 | E8: 10901
A9: E - KLP og 5,1 % AGA | B9: ='Fordeling lønn'!J15 -> 0.856846473 | C9: ='Fordeling lønn'!J16 -> 0.09543568465 | D9: ='Fordeling lønn'!J17 -> 0.04771784232 | E9: 10901
A10: F - KLP og ingen AGA | B10: ='Fordeling lønn'!J24 -> 0.8997821351 | C10: ='Fordeling lønn'!J25 -> 0.1002178649 | D10: ='Fordeling lønn'!J26 -> 0 | E10: 10901

Sheet Fordeling lønn (hidden)
B3: SPK | G3: KLP
B5: Fordelingsnøkkel mellom lønn, pensjon, arb.giv.avg | G5: Fordelingsnøkkel mellom lønn, pensjon, arb.giv.avg
B6: Lønn inkl. F.p | D6: 41300 | E6: =D6/$D$10 -> 0.8210735586 | G6: Lønn inkl. F.p | I6: 41300 | J6: =I6/$I$10 -> 0.8343434343
B7: Pensjon | C7: =Meny!D28 -> 0.13 | D7: =ROUND(D6/1.0123*C7,-2) -> 5300 | E7: =D7/$D$10 -> 0.1053677932 | G7: Pensjon | H7: =Meny!D30 -> 0.1133 | I7: =ROUND(I6/1.0123*H7,-2) -> 4600 | J7: =I7/$I$10 -> 0.09292929293
B8: Arb.giveravg. | C8: 0.079 | D8: =ROUND((D6+D7)*C8,-2) -> 3700 | E8: =D8/$D$10 -> 0.07355864811 | G8: Arb.giveravg. | H8: 0.079 | I8: =ROUND((I6+I7)*H8,-2) -> 3600 | J8: =I8/$I$10 -> 0.07272727273
B9: Sykelønnsref | C9: 0 | D9: =ROUND(D6*C9,-2) -> 0 | E9: =D9/D10 -> 0 | G9: Sykelønnsref | H9: 0 | I9: =ROUND(I6*H9,-2) -> 0 | J9: =I9/$I$10 -> 0
D10: =SUM(D6:D9) -> 50300 | E10: =SUM(E6:E9) -> 1 | I10: =SUM(I6:I9) -> 49500 | J10: =SUM(J6:J9) -> 1
B14: Fordelingsnøkkel mellom lønn, pensjon, arb.giv.avg | G14: Fordelingsnøkkel mellom lønn, pensjon, arb.giv.avg
B15: Lønn inkl. F.p | D15: 41300 | E15: =D15/$D$19 -> 0.8428571429 | G15: Lønn inkl. F.p | I15: 41300 | J15: =I15/$I$19 -> 0.856846473
B16: Pensjon | C16: =C7 -> 0.13 | D16: =ROUND(D15/1.0123*C16,-2) -> 5300 | E16: =D16/$D$19 -> 0.1081632653 | G16: Pensjon | H16: =H7 -> 0.1133 | I16: =ROUND(I15/1.0123*H16,-2) -> 4600 | J16: =I16/$I$19 -> 0.09543568465
B17: Arb.giveravg. | C17: 0.051 | D17: =ROUND((D15+D16)*C17,-2) -> 2400 | E17: =D17/$D$19 -> 0.04897959184 | G17: Arb.giveravg. | H17: 0.051 | I17: =ROUND((I15+I16)*H17,-2) -> 2300 | J17: =I17/$I$19 -> 0.04771784232
B18: Sykelønnsref. | C18: 0 | D18: =ROUND(D15*C18,-2) -> 0 | E18: =D18/D19 -> 0 | G18: Sykelønnsref. | H18: 0 | I18: =ROUND(I15*H18,-2) -> 0 | J18: =I18/$I$19 -> 0
D19: =SUM(D15:D18) -> 49000 | E19: =SUM(E15:E18) -> 1 | I19: =SUM(I15:I18) -> 48200 | J19: =SUM(J15:J18) -> 1
B23: Fordelingsnøkkel mellom lønn, pensjon, arb.giv.avg | G23: Fordelingsnøkkel mellom lønn, pensjon, arb.giv.avg
B24: Lønn inkl. F.p | D24: 41300 | E24: =D24/$D$28 -> 0.8862660944 | G24: Lønn inkl. F.p | I24: 41300 | J24: =I24/$I$28 -> 0.8997821351
B25: Pensjon | C25: =C7 -> 0.13 | D25: =ROUND(D24/1.0123*C25,-2) -> 5300 | E25: =D25/$D$28 -> 0.1137339056 | G25: Pensjon | H25: =H7 -> 0.1133 | I25: =ROUND(I24/1.0123*H25,-2) -> 4600 | J25: =I25/$I$28 -> 0.1002178649
B26: Arb.giveravg. | C26: 0 | D26: =ROUND((D24+D25)*C26,-2) -> 0 | E26: =D26/$D$28 -> 0 | G26: Arb.giveravg. | H26: 0 | I26: =ROUND((I24+I25)*H26,-2) -> 0 | J26: =I26/$I$28 -> 0
C27: 0 | D27: =ROUND(D24*C27,-2) -> 0 | E27: =D27/D28 -> 0 | H27: 0 | I27: =ROUND(I24*H27,-2) -> 0 | J27: =I27/$I$28 -> 0
D28: =SUM(D24:D27) -> 46600 | E28: =SUM(E24:E27) -> 1 | I28: =SUM(I24:I27) -> 45900 | J28: =SUM(J24:J27) -> 1
B32: Fordelingsnøkkel mellom lønn, pensjon, arb.giv.avg | G32: Fordelingsnøkkel mellom lønn, pensjon, arb.giv.avg
B33: Lønn inkl. F.p | D33: 41300 | E33: =D33/$D$37 -> 0.8326612903 | G33: Lønn inkl. F.p | I33: 41300 | J33: =I33/$I$37 -> 0.8445807771
B34: Pensjon | C34: =C7 -> 0.13 | D34: =ROUND(D33/1.0123*C34,-2) -> 5300 | E34: =D34/$D$37 -> 0.1068548387 | G34: Pensjon | H34: =H7 -> 0.1133 | I34: =ROUND(I33/1.0123*H34,-2) -> 4600 | J34: =I34/$I$37 -> 0.09406952965
B35: Arb.giveravg. | C35: 0.065 | D35: =ROUND((D33+D34)*C35,-2) -> 3000 | E35: =D35/$D$37 -> 0.06048387097 | G35: Arb.giveravg. | H35: 0.065 | I35: =ROUND((I33+I34)*H35,-2) -> 3000 | J35: =I35/$I$37 -> 0.06134969325
C36: 0 | D36: =ROUND(D33*C36,-2) -> 0 | E36: =D36/$D$37 -> 0 | H36: 0 | I36: =ROUND(I33*H36,-2) -> 0 | J36: =I36/$I$37 -> 0
D37: =SUM(D33:D36) -> 49600 | E37: =SUM(E33:E36) -> 1 | I37: =SUM(I33:I36) -> 48900 | J37: =SUM(J33:J36) -> 1
